[Event "46th GRE-chT Premier 2018"]
[Site "Rio Achaia"]
[Date "2018.07.11"]
[Round "2"]
[White "Ilandzis, Spyridon"]
[Black "Dimitrov, Atanas"]
[Result "0-1"]
[ECO "C70"]
[WhiteElo "1980"]
[BlackElo "2294"]
[Annotator "NA"]
[PlyCount "72"]
[EventDate "2018.07.10"]
[EventType "team-tourn"]
[EventCountry "GRE"]
[SourceTitle "playchess.com"]
[Source "ChessBase"]
[SourceQuality "1"]
[TimeControl "40/5400+30:1800+30"]

1. e4 e5 2. Nf3 Nc6 3. Bb5 a6 4. Ba4 Nge7 5. O-O g6 6. c3 Bg7 7. d4 exd4 8. cxd4 O-O 9. Nc3 b5 10. Bb3 d6 11. h3 Na5 12. Bc2 $11 {LiveBook: 206 Partien} h6 13. Bf4 Bb7 14. Re1 Re8 15. Qc1 Kh7 16. h4 Qd7 17. h5 c5 18. dxc5 dxc5 19. Rd1 Qg4 20. hxg6+ Nxg6 21. Be3 Nc4 22. Nh2 Qe6 23. Bxc5 Rac8 24. Bd4 Rg8 25. Bxg7 Rxg7 26. Nd5 Nce5 27. Kh1 Nh4 28. Rg1 Nxg2 29. Rxg2 Rxg2 30. Kxg2 Qg6+ 31. Kh1 Bxd5 32. exd5 Rxc2 33. Qe3 Nd3 34. Ng4 Qh5+ 35. Nh2 Nxf2+ 36. Kg1 Qxh2+ 0-1

[Event "46th GRE-chT Premier 2018"]
[Site "Rio Achaia"]
[Date "2018.07.11"]
[Round "2"]
[White "Loutragotis, Paraskevas Pantelei"]
[Black "Kartsidima, Aikaterini"]
[Result "1-0"]
[ECO "B09"]
[WhiteElo "1980"]
[BlackElo "1402"]
[Annotator "NA"]
[PlyCount "39"]
[EventDate "2018.07.10"]
[EventType "team-tourn"]
[EventCountry "GRE"]
[SourceTitle "playchess.com"]
[Source "ChessBase"]
[SourceQuality "1"]
[TimeControl "40/5400+30:1800+30"]

1. e4 {[%emt 0:00:00]} d6 {[%emt 0:02:31]} 2. d4 {[%emt 0:00:00]} Nf6 {[%emt 0:00:16]} 3. Nc3 {[%emt 0:00:02]} g6 {[%emt 0:00:54]} 4. f4 {[%emt 0:01:04]} Bg7 {[%emt 0:02:01]} 5. Nf3 {[%emt 0:00:13]} c6 {[%emt 0:06:25]} 6. Bd3 {[%emt 0:00:53]} b5 {[%emt 0:02:58]} 7. e5 {[%emt 0:00:19]} Nfd7 {[%emt 0:05:49]} 8. O-O {[%emt 0:01:59]} O-O {[%emt 0:02:56]} 9. Ne4 {[%emt 0:02:35]} Nb6 {[%emt 0:05:26]} 10. Qe1 {[%emt 0:01:28]} dxe5 {[%emt 0:10:44]} 11. fxe5 {[%emt 0:00:13]} Nd5 {[%emt 0:01:51]} 12. Qh4 {[%emt 0:00:33]} Nb4 {[%emt 0:03:46]} 13. Bh6 {[%emt 0:02:59]} Nxd3 {[%emt 0:03:33]} 14. Neg5 {[%emt 0:06:00]} Re8 {[%emt 0:16:16]} 15. cxd3 {[%emt 0:06:34]} f6 {[%emt 0:04:57]} 16. Bxg7 {[%emt 0:00:20]} fxg5 {[%emt 0:00:32]} 17. Nxg5 {[%emt 0:00:11]} h5 {[%emt 0:02:45]} 18. Qe4 {[%emt 0:00:37]} Bf5 {[%emt 0:01:28]} 19. Rxf5 {[%emt 0:00:06]} gxf5 {[%emt 0:00:46]} 20. Qxf5 {[%emt 0:00:05]} 1-0

[Event "46th GRE-chT Premier 2018"]
[Site "Rio Achaia"]
[Date "2018.07.11"]
[Round "2"]
[White "Boviatsis, Charalampos"]
[Black "Papadopoulos, Panayotis"]
[Result "0-1"]
[ECO "B34"]
[WhiteElo "1979"]
[BlackElo "2189"]
[Annotator "NA"]
[PlyCount "106"]
[EventDate "2018.07.10"]
[EventType "team-tourn"]
[EventCountry "GRE"]
[SourceTitle "playchess.com"]
[Source "ChessBase"]
[SourceQuality "1"]
[TimeControl "40/5400+30:1800+30"]

1. e4 {[%emt 0:00:00]} c5 {[%emt 0:00:00]} 2. Nf3 {[%emt 0:00:07]} Nc6 {[%emt 0:00:00]} 3. d4 {[%emt 0:00:08]} cxd4 {[%emt 0:00:00]} 4. Nxd4 {[%emt 0:00:08]} g6 $14 {[%emt 0:00:00] LiveBook: 9571 Partien} 5. Nc3 {[%emt 0:00:31]} Bg7 {[%emt 0:00:00]} 6. Nb3 {[%emt 0:00:14]} Nf6 {[%emt 0:00:05]} 7. Be2 {[%emt 0:00:49]} O-O {[%emt 0:00:18]} 8. Bg5 {[%emt 0:00:28]} a5 {[%emt 0:01:50]} 9. a4 {[%emt 0:00:22]} d6 {[%emt 0:00:58]} 10. O-O {[%emt 0:00:48]} Be6 {[%emt 0:00:33]} 11. f4 {[%emt 0:01:31]} Bxb3 {[%emt 0:07:31]} 12. cxb3 {[%emt 0:00:12]} Nd7 {[%emt 0:04:22]} 13. Bc4 {[%emt 0:15:20]} Nc5 {[%emt 0:03:29]} 14. Re1 {[%emt 0:06:32]} Ne6 {[%emt 0:01:04]} 15. Qd2 {[%emt 0:07:58]} Nxg5 {[%emt 0:01:11]} 16. fxg5 {[%emt 0:00:04]} Be5 {[%emt 0:04:31]} 17. Rad1 {[%emt 0:06:04]} Kg7 {[%emt 0:02:33]} 18. Rf1 {[%emt 0:08:16]} e6 {[%emt 0:06:33]} 19. Nb5 {[%emt 0:05:48]} Qe7 {[%emt 0:07:30]} 20. Rf3 {[%emt 0:11:30]} Rad8 {[%emt 0:01:04]} 21. g3 {[%emt 0:07:04]} Nb4 {[%emt 0:00:42]} 22. Nc3 {[%emt 0:04:17]} Rh8 {[%emt 0:07:56]} 23. Rdf1 {[%emt 0:03:50]} Rdf8 {[%emt 0:00:59]} 24. Ne2 {[%emt 0:06:44]} h6 {[%emt 0:04:33]} 25. gxh6+ {[%emt 0:01:34]} Rxh6 {[%emt 0:00:53]} 26. Nd4 {[%emt 0:00:19]} d5 {[%emt 0:03:17]} 27. exd5 {[%emt 0:06:01]} exd5 {[%emt 0:00:15]} 28. Bb5 {[%emt 0:02:29]} Qc5 {[%emt 0:01:50]} 29. Rd1 {[%emt 0:04:03]} Nc2 {[%emt 0:00:40]} 30. Rd3 {[%emt 0:00:08]} Nxd4 {[%emt 0:01:02]} 31. Rxd4 {[%emt 0:00:08]} Rfh8 {[%emt 0:03:21]} 32. h4 {[%emt 0:00:38]} Rd8 {[%emt 0:01:59]} 33. Kg2 {[%emt 0:00:45]} Bxd4 {[%emt 0:00:06]} 34. Qxd4+ {[%emt 0:00:00]} Qxd4 {[%emt 0:00:04]} 35. Rxd4 {[%emt 0:00:00]} Kf6 {[%emt 0:00:24]} 36. Rf4+ {[%emt 0:01:06]} Ke6 {[%emt 0:00:08]} 37. b4 {[%emt 0:00:13]} axb4 {[%emt 0:01:29]} 38. Rxb4 {[%emt 0:00:22]} Rhh8 {[%emt 0:00:42]} 39. Bd3 {[%emt 0:01:04]} Rd7 {[%emt 0:00:16]} 40. Kf3 {[%emt 0:00:00]} Ke5 {[%emt 0:00:00]} 41. a5 {[%emt 0:04:17]} Ra8 {[%emt 0:11:15]} 42. Ra4 {[%emt 0:00:38]} Rc7 {[%emt 0:00:52]} 43. Ke3 {[%emt 0:02:03]} Rc1 {[%emt 0:04:56]} 44. Rf4 {[%emt 0:01:06]} Ke6 {[%emt 0:19:00]} 45. b4 {[%emt 0:03:30]} Ra1 {[%emt 0:01:08]} 46. g4 {[%emt 0:07:22]} Re1+ {[%emt 0:06:14]} 47. Kd4 {[%emt 0:01:10]} Rd1 {[%emt 0:06:56]} 48. g5 {[%emt 0:02:14]} Rc8 {[%emt 0:00:45]} 49. Rf6+ {[%emt 0:03:50]} Ke7 {[%emt 0:00:12]} 50. Rf3 {[%emt 0:00:28]} Rc4+ {[%emt 0:01:29]} 51. Kxd5 {[%emt 0:01:35]} Rxb4 {[%emt 0:00:04]} 52. Kc5 {[%emt 0:01:25]} Rxh4 {[%emt 0:00:27]} 53. Bc4 {[%emt 0:00:55]} Rc1 {[%emt 0:00:08]} 0-1

[Event "46th GRE-chT Premier 2018"]
[Site "Rio Achaia"]
[Date "2018.07.11"]
[Round "2"]
[White "Karapiperis, Alexandros"]
[Black "Azis, Azizis Ektoras"]
[Result "0-1"]
[ECO "B22"]
[WhiteElo "1973"]
[BlackElo "2209"]
[Annotator "NA"]
[PlyCount "94"]
[EventDate "2018.07.10"]
[EventType "team-tourn"]
[EventCountry "GRE"]
[SourceTitle "playchess.com"]
[Source "ChessBase"]
[SourceQuality "1"]
[TimeControl "40/5400+30:1800+30"]

1. e4 {[%emt 0:00:00]} c5 {[%emt 0:01:32]} 2. c3 {[%emt 0:00:00]} e6 {[%emt 0:00:50]} 3. Nf3 {[%emt 0:00:58]} d5 {[%emt 0:01:17]} 4. exd5 {[%emt 0:00:21]} exd5 {[%emt 0:00:26]} 5. d4 {[%emt 0:02:14]} Nf6 {[%emt 0:00:42]} 6. Bb5+ {[%emt 0:00:19]} Bd7 {[%emt 0:01:18]} 7. Bxd7+ {[%emt 0:00:14]} Nbxd7 {[%emt 0:00:46]} 8. O-O {[%emt 0:00:20]} Be7 {[%emt 0:00:19]} 9. dxc5 {[%emt 0:01:23]} Nxc5 {[%emt 0:00:40]} 10. Nd4 {[%emt 0:00:47]} Qd7 {[%emt 0:01:40]} 11. Nd2 {[%emt 0:01:54]} O-O {[%emt 0:00:38]} 12. N2b3 {[%emt 0:00:19]} Nce4 {[%emt 0:00:52]} 13. f3 {[%emt 0:00:44]} Nd6 {[%emt 0:01:24]} 14. Nc5 {[%emt 0:02:13]} Qc7 {[%emt 0:02:54]} 15. Nd3 {[%emt 0:00:22]} Nc4 {[%emt 0:05:26]} 16. Kh1 {[%emt 0:10:23]} a6 {[%emt 0:02:40]} 17. Nf5 {[%emt 0:02:34]} Bd6 {[%emt 0:07:46]} 18. Nxd6 {[%emt 0:03:53]} Qxd6 {[%emt 0:01:09]} 19. Bf4 {[%emt 0:00:39]} Qb6 {[%emt 0:07:20]} 20. Qb3 {[%emt 0:01:36]} Qa7 {[%emt 0:04:38]} 21. Rad1 {[%emt 0:05:58]} Rfe8 {[%emt 0:04:06]} 22. Nb4 {[%emt 0:00:51]} b5 {[%emt 0:06:54]} 23. Nxd5 {[%emt 0:04:02]} Nxd5 {[%emt 0:03:58]} 24. Rxd5 {[%emt 0:00:11]} Qf2 {[%emt 0:09:42]} 25. Rdd1 {[%emt 0:06:26]} Qxb2 {[%emt 0:01:17]} 26. Qxb2 {[%emt 0:03:45]} Nxb2 {[%emt 0:00:07]} 27. Rb1 {[%emt 0:02:33]} Re2 {[%emt 0:03:45]} 28. Bg3 {[%emt 0:12:48]} Rae8 {[%emt 0:07:06]} 29. Rfe1 {[%emt 0:00:52]} f5 {[%emt 0:05:28]} 30. h4 {[%emt 0:03:20]} Kf7 {[%emt 0:01:06]} 31. Kg1 {[%emt 0:02:44]} Rxe1+ {[%emt 0:01:42]} 32. Rxe1 {[%emt 0:00:10]} Rxe1+ {[%emt 0:00:26]} 33. Bxe1 {[%emt 0:00:08]} Ke6 {[%emt 0:00:17]} 34. Kf1 {[%emt 0:00:20]} Kd5 {[%emt 0:00:51]} 35. Ke2 {[%emt 0:00:14]} Kc4 {[%emt 0:00:56]} 36. Kd2 {[%emt 0:00:13]} Nd3 {[%emt 0:09:08]} 37. Bg3 {[%emt 0:00:17]} f4 {[%emt 0:01:05]} 38. Bh2 {[%emt 0:00:05]} a5 {[%emt 0:01:03]} 39. Bg1 {[%emt 0:01:55]} a4 {[%emt 0:00:56]} 40. h5 {[%emt 0:00:00]} g6 {[%emt 0:00:00]} 41. hxg6 {[%emt 0:10:33]} hxg6 {[%emt 0:03:22]} 42. Bh2 {[%emt 0:05:25]} a3 {[%emt 0:01:12]} 43. Bg1 {[%emt 0:00:28]} b4 {[%emt 0:07:35]} 44. Bd4 {[%emt 0:00:29]} Nb2 {[%emt 0:00:49]} 45. Bf6 {[%emt 0:02:08]} b3 {[%emt 0:00:37]} 46. axb3+ {[%emt 0:00:04]} Kxb3 {[%emt 0:00:06]} 47. c4 {[%emt 0:00:20]} a2 {[%emt 0:00:16]} 0-1

[Event "46th GRE-chT Premier 2018"]
[Site "Rio Achaia"]
[Date "2018.07.11"]
[Round "2"]
[White "Dimopoulos, Dimitrios"]
[Black "Tsomis, Dimitrios"]
[Result "1-0"]
[ECO "A05"]
[WhiteElo "1944"]
[BlackElo "1938"]
[Annotator "NA"]
[PlyCount "167"]
[EventDate "2018.07.10"]
[EventType "team-tourn"]
[EventCountry "GRE"]
[SourceTitle "playchess.com"]
[Source "ChessBase"]
[SourceQuality "1"]
[TimeControl "40/5400+30:1800+30"]

1. Nf3 {[%emt 0:00:00]} Nf6 {[%emt 0:02:46]} 2. g3 {[%emt 0:00:00]} g6 {[%emt 0:00:30]} 3. Bg2 {[%emt 0:00:00]} Bg7 {[%emt 0:00:17]} 4. O-O {[%emt 0:00:00]} O-O {[%emt 0:00:21]} 5. d3 {[%emt 0:00:26]} c5 {[%emt 0:02:46]} 6. e4 {[%emt 0:00:47]} d6 {[%emt 0:00:25]} 7. Nbd2 {[%emt 0:01:03]} Nc6 {[%emt 0:00:42]} 8. c3 {[%emt 0:01:15]} Qc7 {[%emt 0:01:54]} 9. Qe2 {[%emt 0:07:11]} a6 {[%emt 0:04:17]} 10. h3 {[%emt 0:07:23]} Rb8 {[%emt 0:03:05]} 11. d4 {[%emt 0:06:48]} e5 {[%emt 0:06:59]} 12. dxe5 {[%emt 0:09:57]} dxe5 {[%emt 0:02:04]} 13. Re1 {[%emt 0:01:47]} b5 {[%emt 0:03:20]} 14. Nf1 {[%emt 0:15:23]} Be6 {[%emt 0:02:57]} 15. Qc2 {[%emt 0:02:30]} h6 {[%emt 0:02:32]} 16. Ne3 {[%emt 0:05:59]} Rbd8 {[%emt 0:02:33]} 17. Nd2 {[%emt 0:03:06]} c4 {[%emt 0:07:27]} 18. Ndf1 {[%emt 0:02:00]} Rd7 {[%emt 0:00:35]} 19. Bd2 {[%emt 0:02:57]} Rfd8 {[%emt 0:01:54]} 20. Rad1 {[%emt 0:02:28]} Rd3 {[%emt 0:02:21]} 21. Bc1 {[%emt 0:00:41]} Qd7 22. Kh2 Ne7 {[%emt 0:04:53]} 23. Nd2 {[%emt 0:11:26]} Qc7 {[%emt 0:02:12]} 24. Bf1 {[%emt 0:01:17]} R3d6 {[%emt 0:05:02]} 25. b3 {[%emt 0:09:39]} cxb3 {[%emt 0:03:26]} 26. axb3 {[%emt 0:00:04]} Rc6 {[%emt 0:02:35]} 27. Bb2 {[%emt 0:00:26]} Nd7 {[%emt 0:03:43]} 28. Qb1 {[%emt 0:04:08]} Nc5 {[%emt 0:01:14]} 29. c4 {[%emt 0:00:42]} bxc4 {[%emt 0:07:19]} 30. bxc4 {[%emt 0:00:34]} Rb6 {[%emt 0:01:35]} 31. Qc2 {[%emt 0:00:39]} Rdb8 {[%emt 0:10:32]} 32. Bc3 {[%emt 0:01:03]} Nc6 {[%emt 0:01:11]} 33. Nd5 {[%emt 0:01:52]} Bxd5 {[%emt 0:00:19]} 34. cxd5 {[%emt 0:00:59]} Nd4 {[%emt 0:00:14]} 35. Bxd4 {[%emt 0:00:30]} exd4 {[%emt 0:02:10]} 36. Rc1 {[%emt 0:00:39]} Rb2 37. Qxc5 {[%emt 0:00:04]} Qxc5 {[%emt 0:00:56]} 38. Rxc5 {[%emt 0:01:44]} Rxd2 {[%emt 0:00:20]} 39. Kg1 {[%emt 0:00:00]} Rbb2 {[%emt 0:00:00]} 40. d6 {[%emt 0:00:00]} d3 {[%emt 0:00:00]} 41. d7 {[%emt 0:03:53]} Bf6 42. Rc8+ {[%emt 0:00:10]} Kg7 {[%emt 0:08:24]} 43. d8=Q {[%emt 0:00:06]} Bxd8 {[%emt 0:00:01]} 44. Rxd8 {[%emt 0:00:31]} Rxf2 {[%emt 0:04:00]} 45. Rxd3 {[%emt 0:05:03]} Ra2 {[%emt 0:01:37]} 46. Rde3 {[%emt 0:01:10]} a5 {[%emt 0:00:28]} 47. R1e2 {[%emt 0:00:28]} Rfxe2 {[%emt 0:00:14]} 48. Rxe2 {[%emt 0:01:00]} Ra1 {[%emt 0:00:37]} 49. Kf2 {[%emt 0:03:57]} Kf6 {[%emt 0:01:39]} 50. Rd2 {[%emt 0:02:12]} a4 {[%emt 0:01:38]} 51. Bc4 {[%emt 0:09:09]} a3 {[%emt 0:01:44]} 52. Bd5 {[%emt 0:01:35]} Rc1 53. Ke3 Ke7 {[%emt 0:06:06]} 54. Kd4 {[%emt 0:03:25]} g5 {[%emt 0:04:33]} 55. Ra2 {[%emt 0:05:43]} Rd1+ {[%emt 0:01:16]} 56. Ke3 {[%emt 0:00:29]} Rh1 {[%emt 0:02:05]} 57. Rxa3 {[%emt 0:00:18]} Rxh3 {[%emt 0:00:48]} 58. Kf3 {[%emt 0:00:33]} h5 {[%emt 0:01:29]} 59. Kg2 {[%emt 0:00:35]} g4 {[%emt 0:01:14]} 60. Ra7+ {[%emt 0:00:28]} Kd6 {[%emt 0:00:23]} 61. Rxf7 {[%emt 0:00:39]} h4 {[%emt 0:02:09]} 62. gxh4 {[%emt 0:00:17]} Rxh4 {[%emt 0:01:31]} 63. Kg3 {[%emt 0:00:07]} Rh1 {[%emt 0:00:32]} 64. Kxg4 {[%emt 0:00:09]} Rg1+ {[%emt 0:00:47]} 65. Kf5 {[%emt 0:00:12]} Rf1+ {[%emt 0:00:19]} 66. Kg6 {[%emt 0:00:20]} Rg1+ {[%emt 0:00:16]} 67. Kf6 {[%emt 0:00:04]} Rf1+ {[%emt 0:00:22]} 68. Kg7 {[%emt 0:00:13]} Rg1+ {[%emt 0:00:49]} 69. Kf8 {[%emt 0:00:13]} Rh1 {[%emt 0:00:52]} 70. Rf6+ {[%emt 0:00:31]} Kd7 {[%emt 0:00:14]} 71. Kf7 {[%emt 0:00:57]} Rh7+ {[%emt 0:00:35]} 72. Kg6 {[%emt 0:00:06]} Rh2 {[%emt 0:00:19]} 73. Kg5 {[%emt 0:00:37]} Rg2+ {[%emt 0:00:28]} 74. Kf5 {[%emt 0:00:06]} Rh2 {[%emt 0:00:25]} 75. Ke5 {[%emt 0:00:08]} Rh5+ {[%emt 0:00:36]} 76. Rf5 {[%emt 0:00:18]} Rh2 {[%emt 0:00:17]} 77. Rf7+ {[%emt 0:00:13]} Ke8 {[%emt 0:00:12]} 78. Ke6 {[%emt 0:00:55]} Rh6+ {[%emt 0:01:04]} 79. Rf6 {[%emt 0:00:12]} Rh8 {[%emt 0:00:35]} 80. e5 {[%emt 0:00:44]} Kd8 {[%emt 0:00:21]} 81. Kd6 {[%emt 0:00:17]} Kc8 {[%emt 0:00:28]} 82. Rg6 {[%emt 0:02:34]} Rd8+ {[%emt 0:00:27]} 83. Kc6 {[%emt 0:00:34]} Kb8 {[%emt 0:00:26]} 84. Rg8 {[%emt 0:00:41]} 1-0

[Event "46th GRE-chT Premier 2018"]
[Site "Rio Achaia"]
[Date "2018.07.11"]
[Round "2"]
[White "Marinakis, Hristos"]
[Black "Serpetsidakis, Nikolaos"]
[Result "1/2-1/2"]
[ECO "D02"]
[WhiteElo "1942"]
[BlackElo "2087"]
[Annotator "NA"]
[PlyCount "113"]
[EventDate "2018.07.10"]
[EventType "team-tourn"]
[EventCountry "GRE"]
[SourceTitle "playchess.com"]
[Source "ChessBase"]
[SourceQuality "1"]
[TimeControl "40/5400+30:1800+30"]

1. d4 {[%emt 0:00:00]} d5 {[%emt 0:02:30]} 2. Nf3 {[%emt 0:00:12]} Nf6 {[%emt 0:00:06]} 3. c4 {[%emt 0:00:09]} c6 {[%emt 0:00:04]} 4. Qc2 {[%emt 0:00:38]} dxc4 {[%emt 0:00:45]} 5. Qxc4 {[%emt 0:00:06]} Bg4 {[%emt 0:00:30]} 6. Nbd2 {[%emt 0:03:03]} Nbd7 {[%emt 0:00:30]} 7. g3 {[%emt 0:02:59]} e6 {[%emt 0:01:32]} 8. Bg2 {[%emt 0:00:22]} Be7 {[%emt 0:00:35]} 9. O-O {[%emt 0:01:29]} O-O {[%emt 0:00:08]} 10. Rd1 {[%emt 0:11:24]} a5 {[%emt 0:04:32]} 11. Ne5 {[%emt 0:06:14]} Bh5 {[%emt 0:02:29]} 12. Nxd7 {[%emt 0:03:42]} Qxd7 {[%emt 0:08:08]} 13. Ne4 {[%emt 0:03:38]} Rfc8 {[%emt 0:13:28]} 14. Nxf6+ {[%emt 0:07:02]} Bxf6 {[%emt 0:00:22]} 15. Bf4 {[%emt 0:00:32]} Rd8 {[%emt 0:10:51]} 16. Rd2 {[%emt 0:08:42]} g5 {[%emt 0:03:34]} 17. Be3 {[%emt 0:00:14]} Bg6 {[%emt 0:00:27]} 18. Rad1 {[%emt 0:05:01]} Ra6 {[%emt 0:08:54]} 19. Qc1 {[%emt 0:08:37]} Qe7 {[%emt 0:11:34]} 20. f3 {[%emt 0:07:56]} Qb4 {[%emt 0:06:25]} 21. Bf2 {[%emt 0:04:24]} Raa8 {[%emt 0:03:55]} 22. e4 {[%emt 0:03:00]} Rac8 {[%emt 0:02:40]} 23. Be3 {[%emt 0:04:00]} Bh5 {[%emt 0:06:31]} 24. Rd3 {[%emt 0:05:02]} h6 {[%emt 0:01:07]} 25. Qd2 {[%emt 0:07:57]} Qxd2 {[%emt 0:04:02]} 26. R1xd2 {[%emt 0:00:05]} Rd7 {[%emt 0:01:34]} 27. f4 {[%emt 0:03:13]} Bg6 {[%emt 0:00:43]} 28. Ra3 {[%emt 0:01:56]} Be7 {[%emt 0:01:03]} 29. Rad3 {[%emt 0:00:39]} Rcd8 {[%emt 0:02:09]} 30. g4 {[%emt 0:00:56]} gxf4 {[%emt 0:02:27]} 31. Bxf4 {[%emt 0:00:03]} c5 {[%emt 0:01:02]} 32. d5 {[%emt 0:01:15]} c4 {[%emt 0:00:19]} 33. Rh3 {[%emt 0:00:57]} Bg5 {[%emt 0:00:48]} 34. Bxg5 {[%emt 0:00:15]} hxg5 {[%emt 0:00:01]} 35. Rc3 {[%emt 0:00:47]} exd5 {[%emt 0:00:45]} 36. Rxd5 {[%emt 0:00:46]} Rxd5 {[%emt 0:00:49]} 37. exd5 {[%emt 0:00:04]} Bd3 {[%emt 0:00:38]} 38. a4 {[%emt 0:00:30]} Be2 {[%emt 0:00:30]} 39. Kf2 {[%emt 0:00:43]} Bxg4 {[%emt 0:00:30]} 40. Rxc4 {[%emt 0:00:00]} Bd7 {[%emt 0:00:00]} 41. b4 {[%emt 0:05:58]} axb4 {[%emt 0:10:04]} 42. Rxb4 {[%emt 0:00:05]} b6 {[%emt 0:00:11]} 43. Rxb6 {[%emt 0:08:05]} Bxa4 {[%emt 0:00:20]} 44. Bf3 {[%emt 0:02:36]} Kf8 {[%emt 0:04:17]} 45. Rb4 {[%emt 0:02:26]} Bd7 {[%emt 0:00:46]} 46. h4 {[%emt 0:00:09]} gxh4 {[%emt 0:02:06]} 47. Rxh4 {[%emt 0:00:05]} Ke7 {[%emt 0:00:05]} 48. Rh6 {[%emt 0:01:00]} Bf5 {[%emt 0:00:35]} 49. Rb6 {[%emt 0:01:32]} Rd6 {[%emt 0:01:00]} 50. Rxd6 {[%emt 0:00:33]} Kxd6 {[%emt 0:00:02]} 51. Ke3 {[%emt 0:01:15]} Ke5 {[%emt 0:00:19]} 52. Bh5 {[%emt 0:00:17]} f6 {[%emt 0:00:11]} 53. Bf7 {[%emt 0:00:37]} Bc8 {[%emt 0:00:20]} 54. Bg6 {[%emt 0:00:48]} Bb7 {[%emt 0:00:26]} 55. d6 {[%emt 0:00:15]} Bc6 {[%emt 0:00:06]} 56. Bh7 {[%emt 0:00:19]} Kxd6 {[%emt 0:00:20]} 57. Kd4 {Kd5+} 1/2-1/2

[Event "46th GRE-chT Premier 2018"]
[Site "Rio Achaia"]
[Date "2018.07.11"]
[Round "2"]
[White "Papadopoulos, Asterios"]
[Black "Georgakopoulos, Nikolaos K"]
[Result "1-0"]
[ECO "A00"]
[WhiteElo "1918"]
[BlackElo "2033"]
[Annotator "NA"]
[PlyCount "57"]
[EventDate "2018.07.10"]
[EventType "team-tourn"]
[EventCountry "GRE"]
[SourceTitle "playchess.com"]
[Source "ChessBase"]
[SourceQuality "1"]
[TimeControl "40/5400+30:1800+30"]

1. e3 {[%emt 0:01:35]} Nf6 {[%emt 0:01:27]} 2. Nf3 {[%emt 0:00:06]} g6 {[%emt 0:03:58]} 3. c4 {[%emt 0:00:05]} Bg7 {[%emt 0:00:13]} 4. d4 {[%emt 0:00:05]} d6 {[%emt 0:01:33]} 5. Be2 {[%emt 0:00:22]} Nbd7 {[%emt 0:00:47]} 6. Nc3 {[%emt 0:00:08]} O-O {[%emt 0:00:43]} 7. e4 {[%emt 0:00:18]} e5 {[%emt 0:00:59]} 8. dxe5 {[%emt 0:01:51]} dxe5 {[%emt 0:00:39]} 9. O-O {[%emt 0:00:20]} c6 {[%emt 0:07:21]} 10. Be3 {[%emt 0:02:32]} Qe7 {[%emt 0:00:40]} 11. Qc2 {[%emt 0:02:53]} h6 {[%emt 0:05:50]} 12. Rab1 {[%emt 0:06:40]} Ne8 {[%emt 0:15:15]} 13. b4 {[%emt 0:07:11]} f5 {[%emt 0:03:58]} 14. Bc1 {[%emt 0:10:12]} f4 {[%emt 0:03:50]} 15. b5 {[%emt 0:01:44]} c5 {[%emt 0:11:07]} 16. Qd3 {[%emt 0:05:38]} g5 {[%emt 0:01:53]} 17. Nd5 {[%emt 0:03:02]} Qe6 {[%emt 0:02:02]} 18. a4 {[%emt 0:09:08]} Kh8 {[%emt 0:11:50]} 19. Rb3 {[%emt 0:08:00]} Bf6 {[%emt 0:04:14]} 20. Nd2 {[%emt 0:06:17]} g4 {[%emt 0:00:47]} 21. Nb1 {[%emt 0:03:35]} Bd8 {[%emt 0:04:27]} 22. f3 {[%emt 0:07:32]} h5 {[%emt 0:03:25]} 23. Qd1 {[%emt 0:03:25]} Nef6 {[%emt 0:06:28]} 24. Nbc3 {[%emt 0:03:00]} Ba5 {[%emt 0:01:19]} 25. Ba3 {[%emt 0:05:24]} Rg8 {[%emt 0:05:04]} 26. Nxf6 {[%emt 0:01:15]} Nxf6 {[%emt 0:00:57]} 27. Nd5 {[%emt 0:02:56]} g3 {[%emt 0:01:50]} 28. h3 {[%emt 0:06:31]} Nh7 {[%emt 0:00:31]} 29. Bb2 {[%emt 0:02:00]} 1-0

[Event "46th GRE-chT Premier 2018"]
[Site "Rio Achaia"]
[Date "2018.07.11"]
[Round "2"]
[White "Gkonelas, Nikolaos"]
[Black "Sourgkounis, Angelos"]
[Result "1-0"]
[ECO "B16"]
[WhiteElo "1917"]
[BlackElo "1976"]
[Annotator "NA"]
[PlyCount "61"]
[EventDate "2018.07.10"]
[EventType "team-tourn"]
[EventCountry "GRE"]
[SourceTitle "playchess.com"]
[Source "ChessBase"]
[SourceQuality "1"]
[TimeControl "40/5400+30:1800+30"]

1. e4 {[%emt 0:00:00]} c6 {[%emt 0:04:28]} 2. d4 {[%emt 0:00:00]} d5 {[%emt 0:00:05]} 3. Nc3 {[%emt 0:00:00]} dxe4 {[%emt 0:00:10]} 4. Nxe4 {[%emt 0:00:00]} Nf6 {[%emt 0:00:19]} 5. Nxf6+ {[%emt 0:00:16]} gxf6 {[%emt 0:00:04]} 6. Nf3 {[%emt 0:00:59]} Bg4 {[%emt 0:00:22]} 7. Be2 {[%emt 0:02:32]} Qc7 {[%emt 0:00:35]} 8. Be3 {[%emt 0:04:48]} e6 {[%emt 0:01:49]} 9. c3 {[%emt 0:11:41]} Bd6 {[%emt 0:01:49]} 10. Nd2 {[%emt 0:02:23]} Bf5 {[%emt 0:02:17]} 11. Nc4 {[%emt 0:01:29]} Be7 {[%emt 0:00:56]} 12. Qd2 {[%emt 0:02:02]} Nd7 {[%emt 0:02:57]} 13. Bf4 {[%emt 0:10:17]} e5 {[%emt 0:00:45]} 14. Bg3 {[%emt 0:00:06]} O-O-O {[%emt 0:02:22]} 15. Qe3 {[%emt 0:09:42]} Rhe8 {[%emt 0:05:42]} 16. dxe5 {[%emt 0:02:52]} Bc5 {[%emt 0:05:30]} 17. Qf3 {[%emt 0:02:35]} Be6 {[%emt 0:10:33]} 18. exf6 {[%emt 0:11:22]} Bxc4 19. Bxc7 {[%emt 0:00:17]} Bxe2 {[%emt 0:02:30]} 20. Qf4 {[%emt 0:03:31]} Bb5+ {[%emt 0:15:55]} 21. Kd1 {[%emt 0:00:10]} Be2+ {[%emt 0:13:45]} 22. Kc1 {[%emt 0:08:53]} Re6 {[%emt 0:04:33]} 23. Bxd8 {[%emt 0:00:34]} Ne5 {[%emt 0:00:29]} 24. Kc2 {[%emt 0:04:06]} Bd3+ {[%emt 0:02:42]} 25. Kd2 {[%emt 0:02:41]} Kxd8 {[%emt 0:00:38]} 26. Rhe1 {[%emt 0:05:42]} Bd6 {[%emt 0:00:41]} 27. Qd4 {[%emt 0:00:53]} c5 {[%emt 0:01:41]} 28. Qxd3 {[%emt 0:00:50]} Nxd3 {[%emt 0:00:10]} 29. Rxe6 {[%emt 0:00:04]} fxe6 {[%emt 0:00:42]} 30. Kxd3 {[%emt 0:00:05]} Ke8 {[%emt 0:00:03]} 31. Ke4 {[%emt 0:00:40]} 1-0